Workbook

Sheet aula
A1: Fluido | B1: nitrogen
A2: P1 | B2: 20 | C2: bar | F2: xk | I2: fk | K2: QR | L2: T3 | M2: T6
A3: T1 | B3: 25 | C3: °C | E3: QR | F3: 360.3863149 | G3: kW | H3: f1 | I3: =F3-B22*([1]!enthalpy(B1,"PT","C",B7/10,F4)-B9) -> 0 | J3: 1 | K3: 1 | L3: =((F3-B22*([1]!enthalpy(B1,"PT","C",B7/10,(F4+eps))-B9))-(F3-B22*([1]!enthalpy(B1,"PT","C",B7/10,F4)-B9)))/eps -> -1.12130321 | M3: 0
A4: h1 | B4: =[1]!enthalpy($B$1,"PT","C",B2/10,B3) -> 305.0985443 | C4: kJ/kg | E4: T3 | F4: 474.6882774 | G4: °C | H4: f2 | I4: =F3-B22*(B19-[1]!enthalpy(B1,"PT","C",B17/10,F5)) -> 0 | J4: 2 | K4: 1 | L4: 0 | M4: =((F3-B22*(B19-[1]!enthalpy(B1,"PT","C",B17/10,(F5+eps))))-(F3-B22*(B19-[1]!enthalpy(B1,"PT","C",B17/10,F5))))/eps -> 1.060275759
A5: s1 | B5: =[1]!entropy($B$1,"PT","C",B2/10,B3) -> 5.937054955 | C5: kJ/kg/K | E5: T6 | F5: 146.1826175 | G5: °C | H5: f3 | I5: =(B18-F4)-(F5-B8)*EXP(B23/F3*((B18-F4)-(F5-B8))) -> -5.577760476e-13 | J5: 3 | K5: =(((B18-F4)-(F5-B8)*EXP(B23/(F3+eps)*((B18-F4)-(F5-B8))))-((B18-F4)-(F5-B8)*EXP(B23/F3*((B18-F4)-(F5-B8)))))/eps -> 0.05114856365 | L5: =(((B18-(F4+eps))-(F5-B8)*EXP(B23/F3*((B18-(F4+eps))-(F5-B8))))-((B18-F4)-(F5-B8)*EXP(B23/F3*((B18-F4)-(F5-B8)))))/eps -> 2.956817163 | M5: =(((B18-F4)-((F5+eps)-B8)*EXP(B23/F3*((B18-F4)-((F5+eps)-B8))))-((B18-F4)-(F5-B8)*EXP(B23/F3*((B18-F4)-(F5-B8)))))/eps -> -44.25449225
A7: P2 | B7: =B12 -> 65 | C7: bar | F7: xk+1 | I7: dxk | K7: QR | L7: T3 | M7: T6
A8: T2 | B8: =[1]!Temperature($B$1,"PS","C",B7/10,B10) -> 146.084066 | C8: °C | E8: QR | F8: =F3-I8 -> 360.3863149 | G8: kW | H8: dQr | I8: =MMULT(K8:M10,I3:I5) -> -1.255495718e-14 | J8: 1 | K8: =MINVERSE(K3:M5) -> 0.0593549277 | L8: 0.9394937715 | M8: 0.0225089572
A9: h2 | B9: =[1]!enthalpy($B$1,"PS","C",B7/10,B10) -> 430.4756779 | C9: kJ/kg | E9: T3 | F9: =F4-I9 -> 474.6882774 | G9: °C | H9: dT3 | I9: -1.119675487e-14 | J9: 2 | K9: -0.8388855608 | L9: 0.8378588083 | M9: 0.02007392558
A10: s2 | B10: =B5 -> 5.937054955 | C10: kJ/kg/K | E10: T6 | F10: 146.1826175 | G10: °C | H10: dT6 | I10: 1.184121873e-14 | J10: 3 | K10: -0.05598065144 | L10: 0.05706650181 | M10: -0.02122934246
A12: P4 | B12: 65 | C12: bar
A13: T4 | B13: 750 | C13: °C | E13: h1 | F13: =B4 -> 305.0985443 | G13: kJ/kg | H13: s1 | I13: =B5 -> 5.937054955 | J13: kJ/kg/K | L13: T1 | M13: =B3 -> 25
A14: h4 | B14: =[1]!enthalpy($B$1,"PT","C",B12/10,B13) -> 1107.477504 | C14: kJ/kg | E14: h2 | F14: =B9 -> 430.4756779 | G14: kJ/kg | H14: s2 | I14: =B10 -> 5.937054955 | J14: kJ/kg/K | L14: T2 | M14: =B8 -> 146.084066
A15: s4 | B15: =[1]!entropy($B$1,"PT","C",B12/10,B13) -> 6.930898518 | C15: kJ/kg/K | E15: h3 | F15: =[1]!enthalpy(B1,"PT","C",B2/10,F9) -> 789.1033552 | G15: kJ/kg | H15: s3 | I15: =[1]!entropy(B1,"PT","C",B2/10,F9) -> 6.923838659 | J15: kJ/kg/K | L15: T3 | M15: =F9 -> 474.6882774
E16: h4 | F16: =B14 -> 1107.477504 | G16: kJ/kg | H16: s4 | I16: =B15 -> 6.930898518 | J16: kJ/kg/K | L16: T4 | M16: =B13 -> 750
A17: P5 | B17: =B2 -> 20 | C17: bar | E17: h5 | F17: =B19 -> 794.3997565 | G17: kJ/kg | H17: s5 | I17: =B20 -> 6.930898518 | J17: kJ/kg/K | L17: T5 | M17: =B18 -> 479.4435319
A18: T5 | B18: =[1]!Temperature($B$1,"PS","C",B17/10,B20) -> 479.4435319 | C18: °C | E18: h6 | F18: =[1]!enthalpy(B1,"PT","C",B17/10,F10) -> 434.0134417 | G18: kJ/kg | H18: s6 | I18: =[1]!entropy(B1,"PT","C",B17/10,F10) -> 6.300003188 | J18: kJ/kg/K | L18: T6 | M18: =F10 -> 146.1826175
A19: h5 | B19: =[1]!enthalpy($B$1,"PS","C",B17/10,B20) -> 794.3997565 | C19: kJ/kg
A20: s5 | B20: =B15 -> 6.930898518 | C20: kJ/kg/K
A22: m | B22: 1 | C22: kg/s
A23: UA | B23: 300 | C23: kW/k
A24: eps | B24: 0.001 | C24: -
A26: macro = | B26: ctr + h | C26: solve

Sheet ana entrópica
A1: Fluido | B1: carbon dioxide
A2: P1 | B2: 20 | C2: bar | F2: xk | I2: fk | K2: QR | L2: T3 | M2: T6 | O2: UA | P2: sgen | R2: UA | S2: dTln
A3: T1 | B3: 25 | C3: °C | E3: QR | F3: 365.3140094 | G3: kW | H3: f1 | I3: =F3-B22*([1]!enthalpy(B1,"PT","C",B7/10,F4)-B9) -> 0 | J3: 1 | K3: 1 | L3: =((F3-B22*([1]!enthalpy(B1,"PT","C",B7/10,(F4+eps))-B9))-(F3-B22*([1]!enthalpy(B1,"PT","C",B7/10,F4)-B9)))/eps -> -1.18948079 | M3: 0 | O3: 1 | P3: 0.03228639308 | R3: 1 | S3: 101.947
A4: h1 | B4: =[1]!enthalpy($B$1,"PT","C",B2/10,B3) -> 486.4689032 | C4: kJ/kg | E4: T3 | F4: 471.1420782 | G4: °C | H4: f2 | I4: =F3-B22*(B19-[1]!enthalpy(B1,"PT","C",B17/10,F5)) -> 0 | J4: 2 | K4: 1 | L4: 0 | M4: =((F3-B22*(B19-[1]!enthalpy(B1,"PT","C",B17/10,(F5+eps))))-(F3-B22*(B19-[1]!enthalpy(B1,"PT","C",B17/10,F5))))/eps -> 1.020484907 | O4: 5 | P4: 0.01918428706 | R4: 5 | S4: 34.954
A5: s1 | B5: =[1]!entropy($B$1,"PT","C",B2/10,B3) -> 2.126866627 | C5: kJ/kg/K | E5: T6 | F5: 186.5062242 | G5: °C | H5: f3 | I5: =(B18-F4)-(F5-B8)*EXP(B23/F3*((B18-F4)-(F5-B8))) -> 0 | J5: 3 | K5: =(((B18-F4)-(F5-B8)*EXP(B23/(F3+eps)*((B18-F4)-(F5-B8))))-((B18-F4)-(F5-B8)*EXP(B23/F3*((B18-F4)-(F5-B8)))))/eps -> 0.06900975989 | L5: =(((B18-(F4+eps))-(F5-B8)*EXP(B23/F3*((B18-(F4+eps))-(F5-B8))))-((B18-F4)-(F5-B8)*EXP(B23/F3*((B18-F4)-(F5-B8)))))/eps -> 0.2909602095 | M5: =(((B18-F4)-((F5+eps)-B8)*EXP(B23/F3*((B18-F4)-((F5+eps)-B8))))-((B18-F4)-(F5-B8)*EXP(B23/F3*((B18-F4)-(F5-B8)))))/eps -> -0.4156834053 | O5: 10 | P5: 0.01165899953 | R5: 10 | S5: 19.18665514
O6: 20 | P6: 0.006551992741 | R6: 20 | S6: 10.08344535
A7: P2 | B7: =B12 -> 100 | C7: bar | F7: xk+1 | I7: dxk | K7: QR | L7: T3 | M7: T6 | O7: 40 | P7: 0.003630569616 | R7: 40 | S7: 5.170614081
A8: T2 | B8: =[1]!Temperature($B$1,"PS","C",B7/10,B10) -> 158.8730739 | C8: °C | E8: QR | F8: =F3-I8 -> 365.3140094 | G8: kW | H8: dQr | I8: =MMULT(K8:M10,I3:I5) -> 0 | J8: 1 | K8: =MINVERSE(K3:M5) -> 0.3392852804 | L8: 0.564995452 | M8: 1.387039569 | O8: 60 | P8: 0.002652015119 | R8: 60 | S8: 3.474829323
A9: h2 | B9: =[1]!enthalpy($B$1,"PS","C",B7/10,B10) -> 582.97716 | C9: kJ/kg | E9: T3 | F9: =F4-I9 -> 471.1420782 | G9: °C | H9: dT3 | I9: 0 | J9: 2 | K9: -0.5554648087 | L9: 0.4749933388 | M9: 1.166088246 | O9: 100 | P9: 0.001952070016 | R9: 100 | S9: 2.096633085
A10: s2 | B10: =B5 -> 2.126866627 | C10: kJ/kg/K | E10: T6 | F10: 186.5062242 | G10: °C | H10: dT6 | I10: 0 | J10: 3 | K10: -0.3324745699 | L10: 0.4262723977 | M10: -1.359196554 | O10: 200 | P10: 0.001620878612 | R10: 200 | S10: 1.051068312
O11: 300 | P11: 0.001588283896 | R11: 300 | S11: 0.7008921935
A12: P4 | B12: 100 | C12: bar | O12: 400 | P12: 0.001584304516 | R12: 400 | S12: 0.5256838276
A13: T4 | B13: 750 | C13: °C | G13: =B18 -> 518.3033087 | H13: T5 | O13: 500 | P13: 0.001584347473 | R13: 500 | S13: 0.420548354
A14: h4 | B14: =[1]!enthalpy($B$1,"PT","C",B12/10,B13) -> 1290.157459 | C14: kJ/kg | E14: T3 | F14: =F4 -> 471.1420782 | I14: =G13-F14 -> 47.16123049 | J14: delta | O14: 600 | P14: 0.001584304516 | R14: 600 | S14: 0.3504570803
A15: s4 | B15: =[1]!entropy($B$1,"PT","C",B12/10,B13) -> 3.15308961 | C15: kJ/kg/K | O15: 700 | P15: 0.001584304516 | R15: 700 | S15: 0.300391794
G16: =F5 -> 186.5062242 | H16: T6 | O16: 800 | P16: 0.001584304516 | R16: 800 | S16: 0.2628428193
A17: P5 | B17: =B2 -> 20 | C17: bar | E17: T2 | F17: =B8 -> 158.8730739 | I17: =G16-F17 -> 27.63315031 | J17: delta | O17: 900 | P17: 0.001584304516 | R17: 900 | S17: 0.2336380504
A18: T5 | B18: =[1]!Temperature($B$1,"PS","C",B17/10,B20) -> 518.3033087 | C18: °C | O18: 1000 | P18: 0.001584299199 | R18: 1000 | S18: 0.2102743009
A19: h5 | B19: =[1]!enthalpy($B$1,"PS","C",B17/10,B20) -> 1012.927672 | C19: kJ/kg
A20: s5 | B20: =B15 -> 3.15308961 | C20: kJ/kg/K | E20: h3 | F20: =[1]!enthalpy($B$1,"PT","C",B7/10,F9) -> 948.2911694 | H20: w12 | I20: =B4-B9 -> -96.50825673
E21: s3 | F21: =[1]!entropy($B$1,"PT","C",B7/10,F9) -> 2.76357789 | H21: w45 | I21: =B14-B19 -> 277.2297864
A22: m | B22: 1 | C22: kg/s | K22: =(I23+I24)-(I20+I21) -> 0 | L22: = balanço energia
A23: UA | B23: 10 | C23: kW/k | E23: h6 | F23: =[1]!enthalpy($B$1,"PT","C",B2/10,F10) -> 647.6136629 | H23: q34 | I23: =B14-F20 -> 341.8662894 | K23: =-(B10+B20)+(F21+F24) -> 0.04222581781 | L23: = balanço de entropia
A24: eps | B24: 0.001 | C24: - | E24: s6 | F24: =[1]!entropy($B$1,"PT","C",B2/10,F10) -> 2.558604164 | H24: q61 | I24: =B4-F23 -> -161.1447597
K25: =((B18-F9)-(F10-B8))/LN((B18-F9)/(F10-B8)) -> 36.53140094 | L25: = deltaTln
H26: q23 | I26: =F20-B9 -> 365.3140094
H27: q56 | I27: =F23-B19 -> -365.3140094
